[Event "Early-Titled-Tuesday-Blitz-January-16-2024"]
[Site "Chess.com"]
[Date "2024.01.16"]
[Round "6"]
[White "dzilleruelo"]
[Black "cristianserban1"]
[Result "0-1"]
[WhiteElo "2361"]
[BlackElo "2530"]
[TimeControl "180+1"]
[EndTime "9:10:36 PST"]
[Termination "cristianserban1 won by checkmate"]

1. e4 {[%clk 0:03:00.9]} 1... c5 {[%clk 0:02:57.2]} 2. Nf3 {[%clk 0:03:00.4]}
2... d6 {[%clk 0:02:57.6]} 3. d4 {[%clk 0:03:00.5]} 3... cxd4 {[%clk 0:02:58.5]}
4. Qxd4 {[%clk 0:03:01]} 4... Nf6 {[%clk 0:02:59.4]} 5. Be2 {[%clk 0:03:00.8]}
5... Nc6 {[%clk 0:02:59.2]} 6. Qe3 {[%clk 0:03:01.2]} 6... g6 {[%clk 0:02:58.1]}
7. O-O {[%clk 0:03:01.2]} 7... Bg7 {[%clk 0:02:58.5]} 8. Rd1 {[%clk 0:03:01.6]}
8... O-O {[%clk 0:02:58.7]} 9. e5 {[%clk 0:03:01.4]} 9... Ng4 {[%clk 0:02:58.2]}
10. Qb3 {[%clk 0:02:58.3]} 10... Ngxe5 {[%clk 0:02:57.6]} 11. Nxe5 {[%clk
0:02:58.7]} 11... Nxe5 {[%clk 0:02:54.6]} 12. Nc3 {[%clk 0:02:58.5]} 12... Nc6
{[%clk 0:02:44.7]} 13. Be3 {[%clk 0:02:56.6]} 13... Qa5 {[%clk 0:02:32.6]} 14.
Nd5 {[%clk 0:02:51.1]} 14... Be6 {[%clk 0:02:32.3]} 15. Bf3 {[%clk 0:02:49.9]}
15... Ne5 {[%clk 0:02:28.2]} 16. Nxe7+ {[%clk 0:02:46]} 16... Kh8 {[%clk
0:02:27.4]} 17. Qxb7 {[%clk 0:02:46.5]} 17... Rab8 {[%clk 0:02:25.1]} 18. Qxa7
{[%clk 0:02:45.7]} 18... Nxf3+ {[%clk 0:02:20.6]} 19. gxf3 {[%clk 0:02:45]}
19... Qh5 {[%clk 0:02:16.3]} 20. Bd4 {[%clk 0:02:36.7]} 20... Bh3 {[%clk
0:01:40.7]} 21. Bxg7+ {[%clk 0:02:29.8]} 21... Kxg7 {[%clk 0:01:41.6]} 22. Qd4+
{[%clk 0:02:29.6]} 22... f6 {[%clk 0:01:41.9]} 23. Qf4 {[%clk 0:02:27.4]} 23...
Rb5 {[%clk 0:01:41.3]} 24. Kh1 {[%clk 0:02:02.8]} 24... Re8 {[%clk 0:01:39.9]}
25. Rxd6 {[%clk 0:01:50.4]} 25... Rxe7 {[%clk 0:01:28.8]} 26. Qxf6+ {[%clk
0:01:50.2]} 26... Kh6 {[%clk 0:01:29.3]} 27. Qf8+ {[%clk 0:01:07.3]} 27... Rg7
{[%clk 0:01:28.7]} 28. Qf4+ {[%clk 0:01:07.2]} 28... Rg5 {[%clk 0:01:26.2]} 29.
Rg1 {[%clk 0:00:59.4]} 29... Rf7 {[%clk 0:01:10.5]} 30. Qxg5+ {[%clk 0:00:24.6]}
30... Qxg5 {[%clk 0:01:11.4]} 31. Rxg5 {[%clk 0:00:24.8]} 31... Kxg5 {[%clk
0:01:12.3]} 32. Rd3 {[%clk 0:00:25.1]} 32... Re7 {[%clk 0:01:10.5]} 33. f4+
{[%clk 0:00:21.4]} 33... Kg4 {[%clk 0:01:11.1]} 34. Rg3+ {[%clk 0:00:19.9]}
34... Kh4 {[%clk 0:01:10.9]} 35. Re3 {[%clk 0:00:20.5]} 35... Rf7 {[%clk
0:01:08.1]} 36. a4 {[%clk 0:00:16.6]} 36... Rxf4 {[%clk 0:01:08.1]} 37. Kg1
{[%clk 0:00:17.1]} 37... Rxa4 {[%clk 0:01:08.2]} 38. f3 {[%clk 0:00:15.6]} 38...
Ra1+ {[%clk 0:00:58.6]} 39. Kf2 {[%clk 0:00:16]} 39... Bf5 {[%clk 0:00:57.6]}
40. c4 {[%clk 0:00:15.1]} 40... Rh1 {[%clk 0:00:56.5]} 41. Kg2 {[%clk
0:00:14.3]} 41... Rc1 {[%clk 0:00:56.6]} 42. b3 {[%clk 0:00:12.8]} 42... Rc2+
{[%clk 0:00:51.6]} 43. Kf1 {[%clk 0:00:13.3]} 43... Kg5 {[%clk 0:00:45.3]} 44.
Re5 {[%clk 0:00:06.2]} 44... Kf4 {[%clk 0:00:44.8]} 45. Rb5 {[%clk 0:00:06]}
45... Kxf3 {[%clk 0:00:44.2]} 46. Ke1 {[%clk 0:00:05.3]} 46... Rxh2 {[%clk
0:00:39.4]} 47. c5 {[%clk 0:00:05]} 47... Ke3 {[%clk 0:00:36.8]} 48. b4 {[%clk
0:00:03.5]} 48... Rh1# {[%clk 0:00:36.7]} 0-1

[Event "Early-Titled-Tuesday-Blitz-January-16-2024"]
[Site "Chess.com"]
[Date "2024.01.16"]
[Round "6"]
[White "Allion2017"]
[Black "alvarorodriguezavila"]
[Result "1-0"]
[WhiteElo "2043"]
[BlackElo "2302"]
[TimeControl "180+1"]
[EndTime "9:10:36 PST"]
[Termination "Allion2017 won on time"]

1. d4 {[%clk 0:02:49]} 1... Nf6 {[%clk 0:03:00]} 2. c4 {[%clk 0:02:47.9]} 2...
Nc6 {[%clk 0:03:00.6]} 3. Nc3 {[%clk 0:02:47.3]} 3... e5 {[%clk 0:02:59.6]} 4.
Nf3 {[%clk 0:02:45.2]} 4... exd4 {[%clk 0:02:56.4]} 5. Nxd4 {[%clk 0:02:45.1]}
5... Bb4 {[%clk 0:02:54.7]} 6. Nxc6 {[%clk 0:02:41.9]} 6... bxc6 {[%clk
0:02:54.6]} 7. Bd2 {[%clk 0:02:39.5]} 7... d5 {[%clk 0:02:51.6]} 8. e3 {[%clk
0:02:35.7]} 8... O-O {[%clk 0:02:47.7]} 9. a3 {[%clk 0:02:34.2]} 9... Bc5 {[%clk
0:02:43.1]} 10. Be2 {[%clk 0:02:32.8]} 10... Bf5 {[%clk 0:02:28.5]} 11. O-O
{[%clk 0:02:31.1]} 11... a5 {[%clk 0:02:25.6]} 12. h3 {[%clk 0:02:29.7]} 12...
Re8 {[%clk 0:02:25.4]} 13. Bf3 {[%clk 0:02:27.1]} 13... h6 {[%clk 0:02:21.4]}
14. Rc1 {[%clk 0:02:24.7]} 14... Bd3 {[%clk 0:02:21.2]} 15. Re1 {[%clk 0:02:21]}
15... Bxc4 {[%clk 0:02:14.7]} 16. b3 {[%clk 0:02:21]} 16... Bd3 {[%clk
0:02:01.8]} 17. Nxd5 {[%clk 0:02:15.7]} 17... cxd5 {[%clk 0:01:45.7]} 18. Rxc5
{[%clk 0:02:13.8]} 18... a4 {[%clk 0:01:11.8]} 19. Ba5 {[%clk 0:01:58.1]} 19...
Qd6 {[%clk 0:00:41.4]} 20. Bb4 {[%clk 0:01:45.8]} 20... Be4 {[%clk 0:00:29.9]}
21. bxa4 {[%clk 0:01:37.1]} 21... Bxf3 {[%clk 0:00:24.7]} 22. Qxf3 {[%clk
0:01:36.9]} 22... Rxa4 {[%clk 0:00:25.2]} 23. Rd1 {[%clk 0:01:28]} 23... Qd7
{[%clk 0:00:13.1]} 24. Rdc1 {[%clk 0:01:25]} 24... Ra7 {[%clk 0:00:12.4]} 25.
Rc6 {[%clk 0:01:10.3]} 25... Re6 {[%clk 0:00:09.3]} 26. Rxe6 {[%clk 0:01:05.7]}
26... fxe6 {[%clk 0:00:09.5]} 27. Qf4 {[%clk 0:01:00.9]} 27... c6 {[%clk
0:00:08.1]} 28. Qb8+ {[%clk 0:00:55.1]} 28... Kh7 {[%clk 0:00:06.9]} 29. Rxc6
{[%clk 0:00:55.3]} 29... Rb7 {[%clk 0:00:03.3]} 30. Qc8 {[%clk 0:00:52.9]} 30...
Qxc8 {[%clk 0:00:02]} 31. Rxc8 {[%clk 0:00:52.7]} 31... Kg6 {[%clk 0:00:02.4]}
32. f4 {[%clk 0:00:48.7]} 32... Ne4 {[%clk 0:00:02.3]} 33. Kf1 {[%clk 0:00:48]}
33... Kf5 {[%clk 0:00:02.4]} 34. Ke2 {[%clk 0:00:48.4]} 34... g5 {[%clk
0:00:02.6]} 35. g4+ {[%clk 0:00:46.8]} 35... Kg6 {[%clk 0:00:02.9]} 36. Rg8+
{[%clk 0:00:42.1]} 36... Kh7 {[%clk 0:00:02.6]} 37. Rf8 {[%clk 0:00:42]} 37...
Kg7 {[%clk 0:00:02.2]} 38. Re8 {[%clk 0:00:37.4]} 38... Kf7 {[%clk 0:00:02]} 39.
Rf8+ {[%clk 0:00:37.6]} 39... Kg7 {[%clk 0:00:02.3]} 40. Rc8 {[%clk 0:00:37.9]}
40... Kg6 {[%clk 0:00:01.6]} 41. Kf3 {[%clk 0:00:37.4]} 1-0

[Event "Early-Titled-Tuesday-Blitz-January-16-2024"]
[Site "Chess.com"]
[Date "2024.01.16"]
[Round "6"]
[White "ChessSwole"]
[Black "nindjaxx8"]
[Result "0-1"]
[WhiteElo "2697"]
[BlackElo "2579"]
[TimeControl "180+1"]
[EndTime "9:10:37 PST"]
[Termination "nindjaxx8 won by resignation"]

1. e4 {[%clk 0:03:00.9]} 1... e6 {[%clk 0:02:59]} 2. d4 {[%clk 0:02:59.3]} 2...
d5 {[%clk 0:02:58.9]} 3. Nc3 {[%clk 0:02:59.9]} 3... Bb4 {[%clk 0:02:56.1]} 4.
exd5 {[%clk 0:02:58.7]} 4... exd5 {[%clk 0:02:55.5]} 5. Bd3 {[%clk 0:02:58.6]}
5... Nf6 {[%clk 0:02:55.8]} 6. Ne2 {[%clk 0:02:56.9]} 6... O-O {[%clk 0:02:56]}
7. O-O {[%clk 0:02:56.9]} 7... c6 {[%clk 0:02:50.6]} 8. h3 {[%clk 0:02:50.9]}
8... Nbd7 {[%clk 0:02:50.2]} 9. f4 {[%clk 0:02:50.6]} 9... Re8 {[%clk
0:02:49.9]} 10. f5 {[%clk 0:02:49.8]} 10... Qb6 {[%clk 0:02:45.9]} 11. Bg5
{[%clk 0:02:45.6]} 11... Bd6 {[%clk 0:01:40]} 12. Qe1 {[%clk 0:02:34.8]} 12...
Qxb2 {[%clk 0:01:32.7]} 13. Rb1 {[%clk 0:02:32.1]} 13... Qa3 {[%clk 0:01:32.1]}
14. Qh4 {[%clk 0:02:24.1]} 14... Qa5 {[%clk 0:01:26.4]} 15. Rbe1 {[%clk
0:02:09.3]} 15... b5 {[%clk 0:01:20.2]} 16. Bd2 {[%clk 0:02:06.7]} 16... Qc7
{[%clk 0:01:16.3]} 17. Nf4 {[%clk 0:02:04.6]} 17... Bb7 {[%clk 0:01:14.4]} 18.
a4 {[%clk 0:01:51.4]} 18... b4 {[%clk 0:01:13.5]} 19. Nd1 {[%clk 0:01:50.7]}
19... a5 {[%clk 0:01:09.7]} 20. Nf2 {[%clk 0:01:47.7]} 20... c5 {[%clk
0:00:55.7]} 21. Bb5 {[%clk 0:01:34.1]} 21... Bc6 {[%clk 0:00:26.1]} 22. Ng4
{[%clk 0:01:25.7]} 22... Bxb5 {[%clk 0:00:22.7]} 23. axb5 {[%clk 0:01:22.6]}
23... cxd4 {[%clk 0:00:20]} 24. Nh5 {[%clk 0:01:18]} 24... Be5 {[%clk
0:00:05.7]} 25. Nxg7 {[%clk 0:01:12.2]} 25... Kxg7 {[%clk 0:00:04.7]} 26. Bh6+
{[%clk 0:01:12.4]} 26... Kh8 {[%clk 0:00:04.3]} 27. Nxe5 {[%clk 0:01:13]} 27...
Rxe5 {[%clk 0:00:03.1]} 28. Bf4 {[%clk 0:01:10.5]} 28... Rae8 {[%clk 0:00:01.7]}
29. b6 {[%clk 0:01:01.9]} 29... Qxb6 {[%clk 0:00:02]} 30. Rxe5 {[%clk
0:01:00.7]} 30... Rxe5 {[%clk 0:00:02.7]} 31. Bxe5 {[%clk 0:00:59.7]} 31... Nxe5
{[%clk 0:00:03.6]} 32. Kh1 {[%clk 0:00:59]} 32... d3 {[%clk 0:00:03.6]} 33. cxd3
{[%clk 0:00:58.7]} 33... Nxd3 {[%clk 0:00:03.7]} 34. Qg3 {[%clk 0:00:56.4]}
34... Qd4 {[%clk 0:00:02.2]} 35. Kh2 {[%clk 0:00:52.1]} 35... b3 {[%clk
0:00:02.6]} 36. Qb8+ {[%clk 0:00:49.8]} 36... Kg7 {[%clk 0:00:02.7]} 37. Qxb3
{[%clk 0:00:49.9]} 37... Qe5+ {[%clk 0:00:03]} 38. Kh1 {[%clk 0:00:49.6]} 38...
Qe3 {[%clk 0:00:02.9]} 39. Qb8 {[%clk 0:00:41.2]} 39... Ne4 {[%clk 0:00:02.6]}
40. f6+ {[%clk 0:00:39.1]} 40... Nxf6 {[%clk 0:00:02.1]} 41. Rf3 {[%clk
0:00:37]} 41... Qe1+ {[%clk 0:00:01.4]} 42. Kh2 {[%clk 0:00:37.6]} 42... Qe5+
{[%clk 0:00:02.2]} 43. Rg3+ {[%clk 0:00:36.3]} 43... Ng4+ {[%clk 0:00:02]} 44.
hxg4 {[%clk 0:00:33.6]} 44... Qxb8 {[%clk 0:00:02.9]} 45. g5 {[%clk 0:00:33.4]}
45... Qxg3+ {[%clk 0:00:03.8]} 46. Kxg3 {[%clk 0:00:32.8]} 46... a4 {[%clk
0:00:04.7]} 47. g6 {[%clk 0:00:33.1]} 47... fxg6 {[%clk 0:00:05.6]} 0-1

[Event "Early-Titled-Tuesday-Blitz-January-16-2024"]
[Site "Chess.com"]
[Date "2024.01.16"]
[Round "6"]
[White "Ducke13"]
[Black "Alenzer"]
[Result "0-1"]
[WhiteElo "2326"]
[BlackElo "2132"]
[TimeControl "180+1"]
[EndTime "9:10:43 PST"]
[Termination "Alenzer won on time"]

1. d4 {[%clk 0:02:54.5]} 1... d5 {[%clk 0:02:59.6]} 2. g3 {[%clk 0:02:52.4]}
2... g6 {[%clk 0:02:57.1]} 3. Bg2 {[%clk 0:02:50.7]} 3... Bg7 {[%clk 0:02:57.1]}
4. Nf3 {[%clk 0:02:48.1]} 4... Nf6 {[%clk 0:02:54.8]} 5. c4 {[%clk 0:02:48.2]}
5... c6 {[%clk 0:02:48.7]} 6. cxd5 {[%clk 0:02:40.6]} 6... cxd5 {[%clk
0:02:47.5]} 7. Nc3 {[%clk 0:02:41]} 7... O-O {[%clk 0:02:46.3]} 8. Ne5 {[%clk
0:02:40.2]} 8... Nc6 {[%clk 0:02:41.8]} 9. O-O {[%clk 0:02:39.2]} 9... e6 {[%clk
0:02:26.2]} 10. Nxc6 {[%clk 0:02:21.5]} 10... bxc6 {[%clk 0:02:26.1]} 11. Bf4
{[%clk 0:02:22.1]} 11... Qb6 {[%clk 0:02:14.6]} 12. Na4 {[%clk 0:02:21.3]} 12...
Qb4 {[%clk 0:02:05.9]} 13. a3 {[%clk 0:02:14.3]} 13... Qa5 {[%clk 0:01:58.2]}
14. b4 {[%clk 0:02:13.8]} 14... Qd8 {[%clk 0:01:57.7]} 15. Rc1 {[%clk
0:02:09.7]} 15... a5 {[%clk 0:01:50.9]} 16. Rxc6 {[%clk 0:02:05.2]} 16... axb4
{[%clk 0:01:51]} 17. Nb6 {[%clk 0:01:27.9]} 17... Bd7 {[%clk 0:01:29.3]} 18. Rd6
{[%clk 0:01:19.1]} 18... Rxa3 {[%clk 0:01:20]} 19. Be5 {[%clk 0:01:12.2]} 19...
Ra6 {[%clk 0:00:47.3]} 20. Bxf6 {[%clk 0:00:49.3]} 20... Bxf6 {[%clk 0:00:42.4]}
21. Rxd7 {[%clk 0:00:48.8]} 21... Qxb6 {[%clk 0:00:41.7]} 22. e3 {[%clk
0:00:34.9]} 22... Qc6 {[%clk 0:00:39]} 23. Qe2 {[%clk 0:00:19.8]} 23... Rfa8
{[%clk 0:00:37.3]} 24. Qf3 {[%clk 0:00:15.9]} 24... Qxd7 {[%clk 0:00:30.6]} 25.
Qxf6 {[%clk 0:00:15.6]} 25... b3 {[%clk 0:00:29.3]} 26. h4 {[%clk 0:00:13]}
26... h5 {[%clk 0:00:24.2]} 27. g4 {[%clk 0:00:12.4]} 27... Qd8 {[%clk
0:00:20.6]} 28. Qe5 {[%clk 0:00:08.8]} 28... hxg4 {[%clk 0:00:19.1]} 29. h5
{[%clk 0:00:08.5]} 29... b2 {[%clk 0:00:16.9]} 30. h6 {[%clk 0:00:07.5]} 30...
Qf8 {[%clk 0:00:17.2]} 31. e4 {[%clk 0:00:03.5]} 31... Ra1 {[%clk 0:00:16.3]}
32. exd5 {[%clk 0:00:03.7]} 32... Rxf1+ {[%clk 0:00:15.9]} 33. Bxf1 {[%clk
0:00:03.7]} 33... b1=Q {[%clk 0:00:14.5]} 34. dxe6 {[%clk 0:00:04.3]} 34... fxe6
{[%clk 0:00:11]} 35. Qxe6+ {[%clk 0:00:04]} 35... Qf7 {[%clk 0:00:11.2]} 36. Qc6
{[%clk 0:00:01.2]} 36... Rf8 {[%clk 0:00:10]} 0-1

[Event "Early-Titled-Tuesday-Blitz-January-16-2024"]
[Site "Chess.com"]
[Date "2024.01.16"]
[Round "6"]
[White "Alexei_Gubajdullin"]
[Black "MatthewG-p4p"]
[Result "1-0"]
[WhiteElo "2646"]
[BlackElo "2899"]
[TimeControl "180+1"]
[EndTime "9:10:45 PST"]
[Termination "Alexei_Gubajdullin won by checkmate"]

1. d4 {[%clk 0:02:59]} 1... Nf6 {[%clk 0:02:55.9]} 2. Nf3 {[%clk 0:02:58.9]}
2... c5 {[%clk 0:02:55.7]} 3. c3 {[%clk 0:02:58.1]} 3... d5 {[%clk 0:02:55.3]}
4. Bf4 {[%clk 0:02:57.9]} 4... Nc6 {[%clk 0:02:55.5]} 5. e3 {[%clk 0:02:58]}
5... Qb6 {[%clk 0:02:55.7]} 6. Qc1 {[%clk 0:02:53]} 6... Bf5 {[%clk 0:02:52.4]}
7. Nbd2 {[%clk 0:02:52.3]} 7... e6 {[%clk 0:02:52.3]} 8. Be2 {[%clk 0:02:52]}
8... h6 {[%clk 0:02:52.2]} 9. O-O {[%clk 0:02:52]} 9... Be7 {[%clk 0:02:52.8]}
10. Bd1 {[%clk 0:02:52.1]} 10... Rc8 {[%clk 0:02:39.6]} 11. Bc2 {[%clk
0:02:51.4]} 11... Bxc2 {[%clk 0:02:39.3]} 12. Qxc2 {[%clk 0:02:51.4]} 12... cxd4
{[%clk 0:02:40.1]} 13. cxd4 {[%clk 0:02:34.6]} 13... O-O {[%clk 0:02:39.3]} 14.
Qb3 {[%clk 0:02:33]} 14... Qa6 {[%clk 0:02:24.7]} 15. Rfc1 {[%clk 0:02:27.1]}
15... Nb4 {[%clk 0:02:00.5]} 16. Rc3 {[%clk 0:02:09]} 16... Ne4 {[%clk
0:01:34.3]} 17. Nxe4 {[%clk 0:02:02.8]} 17... dxe4 {[%clk 0:01:35.2]} 18. Ne5
{[%clk 0:02:02.2]} 18... Qe2 {[%clk 0:01:21.2]} 19. Bg3 {[%clk 0:01:31.1]} 19...
b6 {[%clk 0:00:57.5]} 20. h3 {[%clk 0:01:22.8]} 20... Nd5 {[%clk 0:00:54.6]} 21.
Rc6 {[%clk 0:01:12.5]} 21... Nb4 {[%clk 0:00:48]} 22. Rxe6 {[%clk 0:01:03]}
22... fxe6 {[%clk 0:00:25.6]} 23. Qxe6+ {[%clk 0:01:02.6]} 23... Kh7 {[%clk
0:00:26.4]} 24. Qxe7 {[%clk 0:01:02.7]} 24... Qxb2 {[%clk 0:00:21.1]} 25. Rf1
{[%clk 0:01:01.6]} 25... Nd5 {[%clk 0:00:20]} 26. Qe6 {[%clk 0:00:53.3]} 26...
Nf6 {[%clk 0:00:10.6]} 27. Ng4 {[%clk 0:00:47.5]} 27... Nxg4 {[%clk 0:00:10.1]}
28. Qxe4+ {[%clk 0:00:47.3]} 28... Kh8 {[%clk 0:00:10.8]} 29. hxg4 {[%clk
0:00:47.4]} 29... Qxa2 {[%clk 0:00:11.5]} 30. Be5 {[%clk 0:00:47.2]} 30... Qf7
{[%clk 0:00:11.5]} 31. f4 {[%clk 0:00:36.1]} 31... Kg8 {[%clk 0:00:11.3]} 32.
Ra1 {[%clk 0:00:34.7]} 32... a5 {[%clk 0:00:11.4]} 33. Rb1 {[%clk 0:00:35.1]}
33... a4 {[%clk 0:00:08.3]} 34. Rxb6 {[%clk 0:00:34.4]} 34... a3 {[%clk
0:00:05.5]} 35. Ra6 {[%clk 0:00:33.4]} 35... a2 {[%clk 0:00:06.1]} 36. Kh2
{[%clk 0:00:32.3]} 36... Rc1 {[%clk 0:00:06]} 37. d5 {[%clk 0:00:27.8]} 37...
Qe7 {[%clk 0:00:06.5]} 38. g5 {[%clk 0:00:23.3]} 38... a1=Q {[%clk 0:00:05.3]}
39. Rxh6 {[%clk 0:00:18.1]} 39... gxh6 {[%clk 0:00:04.6]} 40. Qg6+ {[%clk
0:00:17.6]} 40... Qg7 {[%clk 0:00:02.1]} 41. Qxg7# {[%clk 0:00:17.7]} 1-0

[Event "Early-Titled-Tuesday-Blitz-January-16-2024"]
[Site "Chess.com"]
[Date "2024.01.16"]
[Round "6"]
[White "mertfelin"]
[Black "PavelChernomordik"]
[Result "0-1"]
[WhiteElo "2225"]
[BlackElo "2411"]
[TimeControl "180+1"]
[EndTime "9:10:45 PST"]
[Termination "PavelChernomordik won by resignation"]

1. e4 {[%clk 0:02:51]} 1... g6 {[%clk 0:02:59.5]} 2. d4 {[%clk 0:02:51.1]} 2...
Bg7 {[%clk 0:02:58.4]} 3. Nf3 {[%clk 0:02:51.7]} 3... d6 {[%clk 0:02:58.1]} 4.
Be3 {[%clk 0:02:52.3]} 4... c5 {[%clk 0:02:51.1]} 5. Bb5+ {[%clk 0:02:39.5]}
5... Bd7 {[%clk 0:02:50.3]} 6. Bxd7+ {[%clk 0:02:39.9]} 6... Nxd7 {[%clk
0:02:48.9]} 7. O-O {[%clk 0:02:40.3]} 7... Qc7 {[%clk 0:02:44.7]} 8. Re1 {[%clk
0:02:30.5]} 8... Ngf6 {[%clk 0:02:42]} 9. e5 {[%clk 0:02:23.5]} 9... dxe5 {[%clk
0:02:36.8]} 10. dxe5 {[%clk 0:02:23.8]} 10... Ng4 {[%clk 0:02:29.7]} 11. Bf4
{[%clk 0:02:08]} 11... Ngxe5 {[%clk 0:02:21.4]} 12. Nxe5 {[%clk 0:02:08]} 12...
Bxe5 {[%clk 0:02:19.9]} 13. Bxe5 {[%clk 0:02:04.3]} 13... Nxe5 {[%clk
0:02:19.6]} 14. Qe2 {[%clk 0:02:02.8]} 14... Nc6 {[%clk 0:02:18.1]} 15. Nc3
{[%clk 0:02:00]} 15... O-O-O {[%clk 0:02:13.3]} 16. Nb5 {[%clk 0:01:46.1]} 16...
Qb6 {[%clk 0:02:05.9]} 17. c3 {[%clk 0:01:46.6]} 17... Rd7 {[%clk 0:01:59.8]}
18. Rad1 {[%clk 0:01:44.7]} 18... Rhd8 {[%clk 0:01:58.5]} 19. Rxd7 {[%clk
0:01:45.1]} 19... Rxd7 {[%clk 0:01:58.1]} 20. h3 {[%clk 0:01:43.4]} 20... Qd8
{[%clk 0:01:52]} 21. Qg4 {[%clk 0:01:36.8]} 21... f5 {[%clk 0:01:46.3]} 22. Qa4
{[%clk 0:01:22.2]} 22... a6 {[%clk 0:01:45.4]} 23. Na3 {[%clk 0:01:21.5]} 23...
Qb6 {[%clk 0:01:32.5]} 24. Nc4 {[%clk 0:01:12.5]} 24... Qb5 {[%clk 0:01:31.1]}
25. Qxb5 {[%clk 0:01:12.6]} 25... axb5 {[%clk 0:01:30.7]} 26. Nb6+ {[%clk
0:01:13.2]} 26... Kc7 {[%clk 0:01:29.9]} 27. Nxd7 {[%clk 0:01:14.1]} 27... Kxd7
{[%clk 0:01:29.7]} 28. f4 {[%clk 0:01:11.9]} 28... e6 {[%clk 0:01:22.7]} 29. Kf2
{[%clk 0:01:08.9]} 29... Ne7 {[%clk 0:01:22.3]} 30. Rd1+ {[%clk 0:01:07.8]}
30... Kc7 {[%clk 0:01:22]} 31. Kf3 {[%clk 0:00:57]} 31... Nd5 {[%clk 0:01:18.6]}
32. g4 {[%clk 0:00:48.2]} 32... Nb6 {[%clk 0:01:15.4]} 33. gxf5 {[%clk
0:00:46.8]} 33... exf5 {[%clk 0:01:13.5]} 34. b3 {[%clk 0:00:42.3]} 34... Nc8
{[%clk 0:01:10]} 35. Rd5 {[%clk 0:00:41]} 35... b6 {[%clk 0:01:09.2]} 36. h4
{[%clk 0:00:31.5]} 36... Nd6 {[%clk 0:01:07.3]} 37. Rd1 {[%clk 0:00:28.3]} 37...
Ne4 {[%clk 0:01:06.6]} 38. c4 {[%clk 0:00:26.3]} 38... b4 {[%clk 0:01:03]} 39.
Re1 {[%clk 0:00:25.1]} 39... Kd6 {[%clk 0:01:01.8]} 40. Rd1+ {[%clk 0:00:25.1]}
40... Ke6 {[%clk 0:01:00.9]} 41. Rd5 {[%clk 0:00:24.3]} 41... Nc3 {[%clk
0:00:59.6]} 42. Rd2 {[%clk 0:00:24.2]} 42... h6 {[%clk 0:00:55]} 43. Rg2 {[%clk
0:00:22.5]} 43... Kf6 {[%clk 0:00:54.3]} 44. Rd2 {[%clk 0:00:18.9]} 44... Ne4
{[%clk 0:00:53.8]} 45. Rd8 {[%clk 0:00:18.8]} 45... Nc3 {[%clk 0:00:52.8]} 46.
Rb8 {[%clk 0:00:19.1]} 46... Nxa2 {[%clk 0:00:51.2]} 47. Rxb6+ {[%clk
0:00:19.6]} 47... Kf7 {[%clk 0:00:50.7]} 48. Rc6 {[%clk 0:00:20.5]} 48... Nc1
{[%clk 0:00:49.5]} 49. Rxc5 {[%clk 0:00:20.6]} 49... Nxb3 {[%clk 0:00:49]} 50.
Rc7+ {[%clk 0:00:21.5]} 50... Ke6 {[%clk 0:00:46.5]} 51. Rc6+ {[%clk 0:00:19.2]}
51... Kf7 {[%clk 0:00:44.2]} 52. Rb6 {[%clk 0:00:19.8]} 52... Nd2+ {[%clk
0:00:41.4]} 53. Ke3 {[%clk 0:00:20.5]} 53... Nxc4+ {[%clk 0:00:41.8]} 0-1

[Event "Early-Titled-Tuesday-Blitz-January-16-2024"]
[Site "Chess.com"]
[Date "2024.01.16"]
[Round "6"]
[White "Shield12"]
[Black "MyDream003"]
[Result "1/2-1/2"]
[WhiteElo "3003"]
[BlackElo "2868"]
[TimeControl "180+1"]
[EndTime "9:10:46 PST"]
[Termination "Game drawn by repetition"]

1. e4 {[%clk 0:03:00.9]} 1... c5 {[%clk 0:02:53.6]} 2. Nf3 {[%clk 0:03:01]} 2...
d6 {[%clk 0:02:53.8]} 3. d4 {[%clk 0:03:01]} 3... cxd4 {[%clk 0:02:54.7]} 4.
Nxd4 {[%clk 0:03:01.9]} 4... Nf6 {[%clk 0:02:55.4]} 5. Nc3 {[%clk 0:03:02.5]}
5... a6 {[%clk 0:02:56.1]} 6. a4 {[%clk 0:03:02.9]} 6... e6 {[%clk 0:02:55.9]}
7. Bd3 {[%clk 0:03:00.8]} 7... Be7 {[%clk 0:02:56.1]} 8. O-O {[%clk 0:02:59.9]}
8... O-O {[%clk 0:02:56.1]} 9. Be3 {[%clk 0:02:59.1]} 9... Nc6 {[%clk
0:02:51.3]} 10. Nxc6 {[%clk 0:02:58.3]} 10... bxc6 {[%clk 0:02:52.2]} 11. a5
{[%clk 0:02:54.8]} 11... Nd7 {[%clk 0:02:51]} 12. Na4 {[%clk 0:02:53]} 12... Bb7
{[%clk 0:02:47.1]} 13. Nb6 {[%clk 0:02:51.3]} 13... Nxb6 {[%clk 0:02:45.7]} 14.
Bxb6 {[%clk 0:02:52.2]} 14... Qd7 {[%clk 0:02:46]} 15. Qe2 {[%clk 0:02:51.4]}
15... Rae8 {[%clk 0:02:45.7]} 16. Bxa6 {[%clk 0:02:49.9]} 16... c5 {[%clk
0:02:32.8]} 17. Rfd1 {[%clk 0:02:46]} 17... Bxa6 {[%clk 0:02:25.8]} 18. Qxa6
{[%clk 0:02:46.9]} 18... Qc6 {[%clk 0:02:26.4]} 19. Qc4 {[%clk 0:02:43.8]} 19...
Bf6 {[%clk 0:02:18.8]} 20. c3 {[%clk 0:02:42.9]} 20... Bd8 {[%clk 0:02:13.7]}
21. Bxd8 {[%clk 0:02:30.6]} 21... Rxd8 {[%clk 0:02:14.6]} 22. b4 {[%clk
0:02:30.8]} 22... Rb8 {[%clk 0:02:05.3]} 23. a6 {[%clk 0:02:30.4]} 23... Rfc8
{[%clk 0:02:03]} 24. a7 {[%clk 0:02:27.8]} 24... Ra8 {[%clk 0:02:03.3]} 25. Ra6
{[%clk 0:02:26.6]} 25... Qb7 {[%clk 0:02:02.4]} 26. b5 {[%clk 0:02:18.2]} 26...
Rxa7 {[%clk 0:02:01.8]} 27. Raxd6 {[%clk 0:02:17]} 27... h6 {[%clk 0:01:58.6]}
28. h3 {[%clk 0:02:04.7]} 28... Ra5 {[%clk 0:01:55]} 29. b6 {[%clk 0:01:51.9]}
29... Ra6 {[%clk 0:01:54.9]} 30. Qb5 {[%clk 0:01:49.1]} 30... Rb8 {[%clk
0:01:49.5]} 31. Rd8+ {[%clk 0:01:09.2]} 31... Rxd8 {[%clk 0:01:49.1]} 32. Rxd8+
{[%clk 0:01:10.1]} 32... Kh7 {[%clk 0:01:49.8]} 33. Rd6 {[%clk 0:01:10.8]} 33...
Ra1+ {[%clk 0:01:25.4]} 34. Kh2 {[%clk 0:01:10.6]} 34... Qxe4 {[%clk 0:01:26]}
35. Qd3 {[%clk 0:01:01.1]} 35... Qxd3 {[%clk 0:01:25.7]} 36. Rxd3 {[%clk
0:01:02]} 36... Rb1 {[%clk 0:01:25.7]} 37. Rd7 {[%clk 0:00:57.3]} 37... Rxb6
{[%clk 0:00:41.1]} 38. Rxf7 {[%clk 0:00:57.1]} 38... Rb3 {[%clk 0:00:41.8]} 39.
Rf3 {[%clk 0:00:57.2]} 39... Kg6 {[%clk 0:00:41.6]} 40. Kg3 {[%clk 0:00:56.8]}
40... e5 {[%clk 0:00:42.1]} 41. h4 {[%clk 0:00:55.4]} 41... e4 {[%clk
0:00:39.6]} 42. Re3 {[%clk 0:00:54.2]} 42... Kf5 {[%clk 0:00:40]} 43. f3 {[%clk
0:00:54]} 43... exf3 {[%clk 0:00:40.9]} 44. Kxf3 {[%clk 0:00:53.3]} 44... h5
{[%clk 0:00:39.4]} 45. Kg3 {[%clk 0:00:52.6]} 45... c4 {[%clk 0:00:38]} 46. Kf3
{[%clk 0:00:50]} 46... g6 {[%clk 0:00:37]} 47. Kg3 {[%clk 0:00:49.4]} 47... Ra3
{[%clk 0:00:29.6]} 48. Kf3 {[%clk 0:00:48.3]} 48... Rb3 {[%clk 0:00:29.7]} 49.
Kg3 {[%clk 0:00:47.6]} 49... Ra3 {[%clk 0:00:19.7]} 50. Kf3 {[%clk 0:00:47.1]}
50... Rb3 {[%clk 0:00:16.2]} 1/2-1/2